fUSD/lending_fUSD_20240103
["ID","MTS","AMOUNT","RATE_DAILY","PERIOD"]
[310017335,1704288849772,702.19,0.00021997,2]
[310017336,1704288854472,182.98,0.00021606,2]
[310017337,1704288854501,155.0,0.000225,2]
[310017338,1704288855296,576.766264,0.000225,2]
[310017339,1704288861868,541.47047378,0.000225,2]
[310017340,1704288864692,383.42158832,0.000225,2]
[310017341,1704288865898,269.95716749,0.000225,2]
[310017342,1704288865970,158.28692601,0.000225,2]
[310017343,1704288868802,2549.21346583,0.00022111,2]
[310017344,1704288869338,155.0,0.000225,2]
[310017345,1704288869460,526.21890816,0.000225,2]
[310017346,1704288870227,241.7259282,0.000225,2]
[310017347,1704288872437,1858.21,0.00021608,2]
[310017348,1704288874484,155.0,0.000225,2]
[310017349,1704288875531,2938.34831561,0.000225,2]
[310017350,1704288875937,1703.69901651,0.000225,2]
[310017351,1704288880351,-937.8219451,0.00022501,2]
[310017352,1704288880419,-155.0,0.00022501,2]
[310017353,1704288880487,-1424.62607917,0.00022501,2]
[310017354,1704288880555,-250.83664573,0.00022502,2]
[310017355,1704288880620,-7485.68006583,0.00022525,2]
[310017356,1704288880678,-2558.54347903,0.00022525,2]
[310017357,1704288880736,-576.766264,0.00022526,2]
[310017358,1704288880792,-155.48825611,0.00022526,2]
[310017359,1704288880849,-540.97773124,0.00022526,2]
[310017360,1704288880906,-359.62078161,0.00022526,2]
[310017361,1704288880962,-155.11357204,0.00022526,2]
[310017362,1704288881017,-10525.07510932,0.00022528,2]
[310017363,1704288881073,-2132.6911642,0.00022528,2]
[310017364,1704288881131,-2892.60523596,0.00022528,2]
[310017365,1704288881193,-25136.5154531,0.00022528,2]
[310017366,1704288881248,-1058.5073427,0.00022529,2]
[310017367,1704288881341,-2771.73067757,0.00022529,2]
[310017368,1704288881404,-155.0,0.00022529,2]
[310017369,1704288881462,-531.23153517,0.0002253,2]
[310017370,1704288881519,-756.56077596,0.0002253,2]
[310017371,1704288881574,-2605.87309653,0.0002253,2]
[310017372,1704288881629,-301.34081716,0.0002253,2]
[310017373,1704288881914,-5675.62947869,0.00022531,2]
[310017374,1704288881952,-155.0,0.00022531,2]
[310017375,1704288881984,-3761.06297707,0.00022531,4]
[310017376,1704288882017,-211.0113246,0.00022533,2]
[310017377,1704288882042,-937.8219451,0.00022535,2]
[310017378,1704288882058,-155.0,0.00022535,2]
[310017379,1704288882082,-1424.62607917,0.00022535,2]
[310017380,1704288882099,-250.83664573,0.00022535,2]
[310017381,1704288882126,-7485.68006583,0.00022535,2]
[310017382,1704288882139,-2558.54347903,0.00022535,2]
[310017383,1704288882169,-576.766264,0.00022535,2]
[310017384,1704288882193,-155.48825611,0.00022535,2]
[310017385,1704288882210,-540.97773124,0.00022535,2]
[310017386,1704288882231,-359.62078161,0.00022535,2]
[310017387,1704288882255,-155.11357204,0.00022535,2]
[310017388,1704288882280,-10525.07510932,0.00022535,2]
[310017389,1704288882965,-2132.6911642,0.00022535,2]
[310017390,1704288883049,-2892.60523596,0.00022535,2]
[310017391,1704288883083,-25136.5154531,0.00022535,2]
[310017392,1704288883099,-1058.5073427,0.00022535,2]
[310017393,1704288883120,-2771.73067757,0.00022535,2]
[310017394,1704288883136,-155.0,0.00022535,2]
[310017395,1704288883172,-531.23153517,0.00022535,2]
[310017396,1704288883207,-756.56077596,0.00022535,2]
[310017397,1704288883224,-2605.87309653,0.00022535,2]
[310017398,1704288883246,-301.34081716,0.00022535,2]
[310017399,1704288883258,-5675.62947869,0.00022535,2]
[310017400,1704288883307,-155.0,0.00022535,2]
[310017401,1704288883335,-158.28692601,0.00022526,2]
[310017402,1704288883345,-3602.77605106,0.00022535,2]
[310017403,1704288883380,-211.0113246,0.00022535,2]
[310017404,1704288883429,-108459.38038422,0.00022535,2]
[310017405,1704288883686,155.0,0.000225,2]
[310017406,1704288906201,328.0,0.00021692,2]
[310017407,1704288930666,1261.89,0.000217,2]
[310017408,1704288948048,373.64,0.00021696,2]
[310017409,1704288957900,2503.59,0.00021696,2]
[310017410,1704288964244,300.0,0.00029,30]
[310017411,1704288964530,300.0,0.00029,30]
[310017412,1704288964811,300.0,0.00029,30]
[310017413,1704288965091,300.0,0.00029,30]
[310017414,1704288965412,300.0,0.00029,30]
[310017415,1704288965990,300.0,0.00029,30]
[310017416,1704288966238,300.0,0.00029,30]
[310017417,1704288966267,198.00575939,0.00029,30]
[310017418,1704288967013,250.0,0.00021685,2]
[310017419,1704288974479,3365.3481,0.00022435,2]
[310017420,1704288990672,170.69,0.00021685,2]
[310017421,1704289015880,1428.58,0.00021858,2]
[310017422,1704289016283,154.16,0.00021902,2]
[310017423,1704289016502,154.16,0.00022276,2]
[310017424,1704289017579,159.93,0.00021685,10]
[310017425,1704289026359,500.0,0.00021679,2]
[310017426,1704289030623,2500.0,0.00022435,2]
[310017427,1704289035789,150.0,0.00021689,2]
[310017428,1704289079046,-531.23153517,0.00022518,2]
[310017429,1704289079067,-576.766264,0.00022519,2]
[310017430,1704289079088,-1703.69901651,0.0002252,2]
[310017431,1704289079109,-2892.60523596,0.00022521,2]
[310017432,1704289079130,-1058.5073427,0.00022521,2]
[310017433,1704289079151,-1424.62607917,0.00022521,2]
[310017434,1704289079171,-155.63615164,0.00022526,2]
[310017435,1704289079193,-300.0,0.00022532,2]
[310017436,1704289079215,-150.0,0.00022532,2]
[310017437,1704289079240,-162.16116058,0.00022533,2]
[310017438,1704289079261,-201.31079452,0.00022533,2]
[310017439,1704289079281,-325.71102052,0.00022533,2]
[310017440,1704289079306,-3754.38265633,0.00022533,4]
[310017441,1704289079327,-2141.5294569,0.00022533,2]
[310017442,1704289079347,-937.04818772,0.00022533,2]
[310017443,1704289079369,-1046.51724463,0.00022533,2]
[310017444,1704289079390,-299.08047786,0.00022533,2]
[310017445,1704289079411,-755.18124328,0.00022533,2]
[310017446,1704289079432,-2684.29646221,0.00022533,2]
[310017447,1704289079453,-175.37272974,0.00022533,2]
[310017448,1704289079474,-155.0,0.00022533,2]
[310017449,1704289079497,-5646.09495807,0.00022533,2]
[310017450,1704289079520,-385.02931366,0.00022534,2]
[310017451,1704289079540,-291.49947289,0.00022534,2]
[310017452,1704289079564,-4846.71319594,0.00022534,2]
[310017453,1704289084879,201.0,0.00021972,2]
[310017454,1704289108846,166.75,0.00021694,2]
[310017455,1704289109065,166.75,0.00022004,2]
[310017456,1704289110084,166.75,0.00022314,2]
[310017457,1704289263578,300.0,0.00029,30]
[310017458,1704289285123,9695.43,0.00021771,2]
[310017459,1704289287909,631.97,0.00019847,2]
[310017460,1704289288304,631.97,0.00022111,2]
[310017462,1704289330338,155.11357204,0.00022432,2]
[310017463,1704289334641,155.11357204,0.00022499,2]
[310017464,1704289342972,305.57003474,0.000224,2]
[310017465,1704289357294,737.6,0.0002176,2]
[310017466,1704289363488,182.97,0.00021757,2]
[310017467,1704289385975,175.73,0.00022,2]
[310017468,1704289388434,1177.76,0.00021761,2]
[310017469,1704289429579,250.0,0.00021751,2]
[310017470,1704289444634,201.0,0.00022125,2]
[310017471,1704289447524,186.82,0.00021762,2]
[310017472,1704289488592,365.08,0.0002164,2]
[310017473,1704289492202,335.16612334,0.00022468,2]
[310017474,1704289499930,169.14,0.00021638,2]
[310017476,1704289528501,155.19,0.00021854,2]
[310017477,1704289539698,151.62,0.00021816,2]
[310017478,1704289540323,151.62,0.00021978,2]
[310017479,1704289540600,151.62,0.00022141,2]
[310017480,1704289540971,151.62,0.00022303,2]
[310017481,1704289541249,151.62,0.00022466,2]
[310017483,1704289571588,379.33379528,0.00022467,2]
[310017484,1704289612070,335.16612334,0.00022473,2]
[310017492,1704289635344,400.0,0.000226,8]
[310017493,1704289637521,800.0,0.000227,8]
[310017494,1704289639633,1200.0,0.000228,8]
[310017495,1704289642006,1600.0,0.000229,8]
[310017496,1704289643526,4662.6758,0.00022467,2]
[310017497,1704289660779,2940.14337641,0.00022473,2]
[310017498,1704289673479,5233.3441,0.00022467,2]
[310017500,1704289716671,303.46703624,0.00022442,2]
[310017501,1704289718283,-2605.87309653,0.00022504,2]
[310017502,1704289718307,-4874.12690347,0.00022504,2]
[310017503,1704289721636,303.46703621,0.00022492,2]
[310017504,1704289722629,335.16612334,0.00022467,2]
[310017505,1704289733234,25283.1436,0.00022467,2]
[310017506,1704289740577,75766.2704,0.00022467,2]
[310017507,1704289755515,1706.4293,0.00022467,2]
[310017508,1704289759301,155.0,0.000225,2]
[310017509,1704289759577,278.43693744,0.000225,2]
[310017510,1704289771517,1424.62607917,0.000225,2]
[310017511,1704289772407,576.766264,0.000225,2]
[310017513,1704289777359,278.19126602,0.000225,2]
[310017514,1704289779534,568.77,0.00019689,2]
[310017515,1704289779643,1058.5073427,0.000225,2]
[310017516,1704289780734,568.77,0.00021953,2]
[310017517,1704289781212,155.0,0.000225,2]
[310017518,1704289784208,2892.60523596,0.000225,2]
[310017519,1704289784603,2500.0,0.00022467,2]
[310017520,1704289784636,5202.84952756,0.000225,2]
[310017521,1704289784998,10525.07510932,0.000225,2]
[310017522,1704289785529,487.96933765,0.000225,2]
[310017523,1704289786412,327.89494103,0.000225,2]
[310017524,1704289796149,531.23153517,0.000225,2]
[310017525,1704289797641,380.57765374,0.000225,2]
[310017526,1704289801184,184.03808,0.000225,2]
[310017527,1704289803023,8674.6416354,0.000225,2]
[310017528,1704289804200,2892.60523596,0.000225,2]
[310017529,1704289804927,201.0,0.00022308,2]
[310017530,1704289806703,2605.87309653,0.000225,2]
[310017531,1704289812736,532.87687378,0.000225,2]
[310017532,1704289819194,1770.60625991,0.000225,2]
[310017533,1704289824212,832.00772875,0.000225,2]
[310017534,1704289824719,366.9435693,0.00022467,2]
[310017564,1704289834821,1099.24,0.00021639,2]
[310017565,1704289835847,-158.28692601,0.00022501,2]
[310017566,1704289835857,-2130.95546807,0.00022501,2]
[310017567,1704289835867,-4268.83900029,0.00022502,2]
[310017568,1704289835885,-5404.96233349,0.00022502,2]
[310017569,1704289835933,-2131.19897623,0.00022502,2]
[310017570,1704289835946,-1002.12804557,0.00022502,2]
[310017571,1704289835958,-5863.23714038,0.00022502,2]
[310017572,1704289835971,-366.05357455,0.00022502,2]
[310017573,1704289835987,-412.45260597,0.00022502,2]
[310017574,1704289836000,-575.17710851,0.00022502,2]
[310017575,1704289836013,-1282.02818207,0.00022502,2]
[310017576,1704289836041,-3830.43848604,0.00022502,2]
[310017577,1704289836052,-150.0,0.00022506,2]
[310017578,1704289836063,-150.0,0.00022506,2]
[310017579,1704289836074,-300.0,0.00022506,2]
[310017580,1704289836085,-2558.54347903,0.00022506,2]
[310017581,1704289836096,-211.0113246,0.00022528,2]
[310017582,1704289836107,-937.8219451,0.00022528,2]
[310017583,1704289836117,-155.48825611,0.00022528,2]
[310017584,1704289836129,-2132.6911642,0.00022528,2]
[310017585,1704289836146,-155.28148489,0.00022528,2]
[310017586,1704289836156,-3761.06297707,0.00022528,4]
[310017587,1704289836167,-155.0,0.00022528,2]
[310017588,1704289836178,-756.56077596,0.00022528,2]
[310017589,1704289836189,-2771.73067757,0.00022528,2]
[310017590,1704289836200,-155.0,0.00022528,2]
[310017591,1704289836211,-540.97773124,0.00022528,2]
[310017592,1704289836221,-359.62078161,0.00022528,2]
[310017593,1704289836232,-301.34081716,0.00022528,2]
[310017594,1704289836242,-3043.99817542,0.00022528,2]
[310017595,1704289836278,-2631.63130327,0.00022528,2]
[310017597,1704289836289,-47884.07723923,0.0002253,2]
[310017600,1704289836300,-1606.14467933,0.00022533,2]
[310017602,1704289836312,-9075.51,0.00022533,2]
[310017604,1704289836322,-150.99,0.00022534,2]
[310017606,1704289836333,-16013.43789167,0.00022535,2]
[310017608,1704289836343,-1261.99874529,0.00022536,2]
[310017610,1704289836353,-499.99,0.00022536,2]
[310017612,1704289836363,-161.72764976,0.00022542,2]
[310017614,1704289836373,-649.87411294,0.00022542,2]
[310017616,1704289836388,-999.99,0.00022548,2]
[310017618,1704289836399,-175.73,0.00022548,2]
[310017620,1704289836409,-155.11357204,0.00022566,2]
[310017622,1704289836420,-131887.7269518,0.00022567,2]
[310017626,1704289836447,-34072.5195482,0.00022567,2]
[310017628,1704289836457,-11857.804,0.00022567,2]
[310017630,1704289836468,-25622.40400646,0.00022567,2]
[310017633,1704289836498,-2909.77799043,0.00022567,2]
[310017634,1704289836548,-1630.76,0.00022567,2]
[310017635,1704289836563,-1827.41570311,0.00022567,2]
[310017636,1704289836573,-1046.00429689,0.00022573,2]
[310017637,1704289836587,-1404.20294277,0.00022573,2]
[310017638,1704289836598,-1408.01988372,0.000226,2]
[310017639,1704289836639,-18591.98011628,0.000226,2]
[310017640,1704289836650,-1099.24,0.00022617,2]
[310017641,1704289836660,-166.75,0.00022624,2]
[310017642,1704289836671,-151.62,0.00022628,2]
[310017643,1704289836682,-155.11357204,0.00022633,2]
[310017644,1704289836693,-154.16,0.00022651,2]
[310017645,1704289836704,-5213.88058374,0.00022663,2]
[310017646,1704289836725,-403.04158324,0.00022665,2]
[310017647,1704289836748,-155.0,0.00022667,2]
[310017648,1704289836767,-155.40173906,0.00022667,2]
[310017649,1704289836793,-36003.06051708,0.00022667,2]
[310017650,1704289836811,-354.37716682,0.00022668,2]
[310017651,1704289836831,-492.83979718,0.00022669,2]
[310017652,1704289836850,-1858.21,0.00022688,2]
[310017653,1704289836866,-250.83664573,0.00022698,2]
[310017654,1704289836890,-1000.0,0.00022698,2]
[310017655,1704289836908,-155.11357204,0.00022699,2]
[310017656,1704289836929,-100000.0,0.000227,2]
[310017657,1704289836952,-1055.03661407,0.00022765,2]
[310017658,1704289836968,-155.11357204,0.00022766,2]
[310017659,1704289836983,-221.95741752,0.00022767,4]
[310017660,1704289837003,-395.47959003,0.00022767,2]
[310017661,1704289837023,-280.14979655,0.00022768,2]
[310017662,1704289837048,-8558.0,0.0002277,2]
[310017663,1704289837069,-1000.0,0.0002278,2]
[310017664,1704289837089,-151.62,0.00022791,2]
[310017665,1704289837106,-463.1885,0.00022798,2]
[310017666,1704289837124,-4777.3735,0.000228,2]
[310017667,1704289837144,-18386.3829,0.000228,2]
[310017668,1704289837164,-507.9931,0.000228,2]
[310017669,1704289837183,-155.11357204,0.00022833,2]
[310017670,1704289837200,-748.78,0.00022877,2]
[310017671,1704289837219,-2212.99981897,0.0002288,2]
[310017672,1704289837238,-2300.0,0.0002288,3]
[310017673,1704289837255,-234.78997094,0.00022898,2]
[310017674,1704289837272,-155.55451817,0.00022898,2]
[310017675,1704289837290,-416.4432959,0.00022898,2]
[310017676,1704289837306,-220.26666446,0.00022898,2]
[310017677,1704289837322,-310.80558639,0.00022898,2]
[310017678,1704289837338,-249.39139602,0.00022898,2]
[310017679,1704289837354,-155.0,0.00022898,2]
[310017680,1704289837369,-540.90072547,0.00022898,2]
[310017681,1704289837389,-6414.95009099,0.00022898,2]
[310017682,1704289837405,-4609.49037417,0.00022898,2]
[310017683,1704289837421,-217.17335148,0.00022898,2]
[310017684,1704289837437,-527.27825206,0.00022898,2]
[310017685,1704289837453,-155.19633491,0.00022898,2]
[310017686,1704289837469,-155.63045223,0.00022899,2]
[310017687,1704289837485,-172.78776713,0.000229,2]
[310017688,1704289837501,-181.58686236,0.000229,2]
[310017689,1704289837518,-155.11357204,0.000229,2]
[310017690,1704289837534,-4488.64388574,0.000229,2]
[310017691,1704289837550,-199.55837171,0.000229,2]
[310017692,1704289837566,-177.01099439,0.000229,2]
[310017693,1704289837582,-182.41060972,0.000229,2]
[310017694,1704289837598,-2144.80874788,0.000229,2]
[310017695,1704289837615,-202.09801169,0.000229,2]
[310017696,1704289837636,-374.62195345,0.000229,2]
[310017697,1704289837653,-1108.2754642,0.000229,2]
[310017698,1704289837669,-642.72815,0.000229,6]
[310017700,1704289837686,-166.75,0.00022934,2]
[310017701,1704289837702,-151.62,0.00022953,2]
[310017702,1704289837717,-188.83365055,0.00022987,2]
[310017703,1704289837733,-188.83365055,0.0002299,2]
[310017704,1704289837749,-478.91379089,0.00022997,2]
[310017705,1704289837765,-157.92592974,0.00022997,2]
[310017706,1704289837785,-164.13920204,0.00022997,2]
[310017707,1704289837800,-3403.22313582,0.00022997,2]
[310017708,1704289837819,-30023.48367362,0.00022997,2]
[310017710,1704289837835,-245.29666959,0.00022997,2]
[310017714,1704289837851,-1622.55779776,0.00022997,2]
[310017718,1704289837867,-1132.97142941,0.00022997,2]
[310017721,1704289837888,-341.66600463,0.00022997,2]
[310017726,1704289837903,-234.53276279,0.00022997,2]
[310017728,1704289837920,-4119.5772874,0.00022997,2]
[310017731,1704289837939,-513.70005074,0.00022997,2]
[310017734,1704289837955,-13602.10865066,0.00022997,2]
[310017736,1704289837974,-5149.51614214,0.00022997,2]
[310017739,1704289837990,-11639.95476372,0.00022997,2]
[310017742,1704289838008,-3920.35158571,0.00022997,2]
[310017743,1704289838023,-3019.43176497,0.00022997,2]
[310017744,1704289838040,-155.43428838,0.00022997,2]
[310017745,1704289838056,-4495.1805989,0.00022997,2]
[310017746,1704289838072,-270.86566884,0.00022997,2]
[310017747,1704289838088,-400.0,0.00022997,2]
[310017748,1704289838104,-155.23217034,0.00022997,2]
[310017749,1704289838120,-155.0,0.00022997,2]
[310017750,1704289838141,-57.91999888,0.00022998,2]
[310017751,1704289838157,-300.21781968,0.00022998,2]
[310017752,1704289838175,-281.1936198,0.00022998,2]
[310017753,1704289838193,-282.54607712,0.00022998,2]
[310017754,1704289838210,-155.58640169,0.00022998,2]
[310017757,1704289838422,-196.21358155,0.00022998,2]
[310017761,1704289838460,-362.50194875,0.00022998,2]
[310017763,1704289838472,-155.0,0.00022998,2]
[310017764,1704289838483,-629.83682463,0.00022998,2]
[310017766,1704289838495,-155.0,0.00022998,2]
[310017768,1704289838505,-317.68758824,0.00022998,2]
[310017770,1704289838516,-155.43819632,0.00022998,2]
[310017772,1704289838527,-579.61035159,0.00022998,2]
[310017774,1704289838538,-599.46059114,0.00022998,2]
[310017777,1704289838549,-155.52825456,0.00022998,2]
[310017779,1704289838560,-1042.36979142,0.00022998,2]
[310017782,1704289838571,-155.47295348,0.00022998,2]
[310017785,1704289838581,-155.12802974,0.00022998,2]
[310017789,1704289838592,-155.27028325,0.00022998,2]
[310017793,1704289838603,-251.99880636,0.00022999,2]
[310017797,1704289838614,-472.46606866,0.00022999,2]
[310017800,1704289838624,-411.37469365,0.00022999,2]
[310017803,1704289838641,-449.58346189,0.00022999,2]
[310017806,1704289838652,-1000.0,0.00022999,3]
[310017809,1704289838664,-818020.97756602,0.00023,2]
[310017812,1704289838676,-867.23694912,0.00023,2]
[310017815,1704289838688,-1170229.90169025,0.00023,2]
[310017820,1704289838703,-22226.85816953,0.00023,2]
[310017823,1704289838716,-16192.30073846,0.00023,2]
[310017826,1704289838730,-4380.0,0.00023,2]
[310017830,1704289838743,-2868.75,0.00023,2]
[310017886,1704289839278,-599.40544327,0.000229,2]
[310017888,1704289839288,-326.08330028,0.00023,2]
[310017892,1704289839323,-6620.73748803,0.00023,2]
[310017899,1704289839377,-2431.52065127,0.00023,2]
[310017901,1704289839394,-306.02252599,0.00023,2]
[310017905,1704289839414,-387251.01110557,0.00023,2]
[310017907,1704289839424,-858.33571241,0.00023,2]
[310017909,1704289839434,-154.16,0.00023025,2]
[310017911,1704289839444,-175.73,0.00023096,2]
[310017913,1704289839454,-2228.68493464,0.000231,2]
[310017915,1704289839463,-166.62,0.00023107,2]
[310017917,1704289839473,-1411.63834129,0.0002313,2]
[310017919,1704289839482,-261.39,0.00023136,2]
[310017921,1704289839492,-1305.4749839,0.00023207,2]
[310017923,1704289839501,-166.62,0.00023221,2]
[310017925,1704289839511,-935.85117802,0.00023223,2]
[310017927,1704289839520,-166.75,0.00023244,2]
[310017929,1704289839530,-1000.0,0.00023273,3]
[310017931,1704289839539,-166.62,0.00023335,2]
[310017933,1704289839549,-154.16,0.000234,2]
[310017935,1704289839558,-9970.867107,0.00023422,2]
[310017937,1704289839569,-166.62,0.0002345,2]
[310017939,1704289839579,-164.42,0.00023459,2]
[310017941,1704289839588,-201.0,0.00023524,3]
[310017943,1704289839599,-1000.0,0.00023547,3]
[310017945,1704289839608,-166.75,0.00023554,2]
[310017947,1704289839617,-166.62,0.00023564,2]
[310017949,1704289839627,-1099.24,0.00023596,2]
[310017951,1704289839639,-175.73,0.00023644,2]
[310017953,1704289839648,-166.62,0.00023678,2]
[310017955,1704289839658,-1858.21,0.00023768,2]
[310017957,1704289839668,-154.16,0.00023775,2]
[310017959,1704289839680,-166.62,0.00023793,2]
[310017961,1704289839689,-4488.64388571,0.00023798,2]
[310017963,1704289839698,-1000.0,0.00023821,3]
[310017965,1704289839707,-166.75,0.00023864,2]
[310017967,1704289839717,-166.62,0.00023907,2]
[310017969,1704289839726,-155.19,0.0002391,2]
[310017971,1704289839735,-2940.14337635,0.00023945,2]
[310017973,1704289839745,-430.12551417,0.00024,2]
[310017975,1704289839755,-201.8226569,0.00024,2]
[310017977,1704289839764,-1000.0,0.00024095,3]
[310017979,1704289839777,-154.16,0.00024149,2]
[310017981,1704289839786,-164.42,0.00024151,2]
[310017983,1704289839796,-175.73,0.00024192,2]
[310017985,1704289839805,-568.77,0.00024216,2]
[310017987,1704289839815,-268.99,0.00024293,2]
[310017989,1704289839825,-377.58,0.00024365,2]
[310017990,1704289839834,-1000.0,0.00024369,3]
[310017992,1704289839843,-328.0,0.00024404,2]
[310017994,1704289839852,-268.99,0.00024421,2]
[310017996,1704289839863,-420.0,0.00024444,2]
[310017998,1704289839873,-737.6,0.0002448,2]
[310018000,1704289839886,-154.16,0.00024524,2]
[310018002,1704289839895,-268.99,0.00024549,2]
[310018004,1704289839905,-1099.24,0.00024574,2]
[310018005,1704289839914,-1000.0,0.00024643,3]
[310018006,1704289839923,-177.01099437,0.0002465,2]
[310018007,1704289839933,-521.72168255,0.00024657,2]
[310018008,1704289839943,-250.0,0.00024658,2]
[310018009,1704289839953,-268.99,0.00024676,2]
[310018010,1704289839962,-4488.64388571,0.00024696,2]
[310018011,1704289839972,-201.0,0.0002474,5]
[310018012,1704289839982,-175.73,0.0002474,2]
[310018014,1704289839992,-268.99,0.00024804,2]
[310018016,1704289840002,-164.42,0.00024843,2]
[310018018,1704289840012,-1858.21,0.00024849,2]
[310018020,1704289840021,-154.16,0.00024898,2]
[310018022,1704289840031,-1000.0,0.00024917,3]
[310018024,1704289840041,-268.99,0.00024932,2]
[310018026,1704289840050,-439.24165887,0.00025,2]
[310018028,1704289840059,-201.35180856,0.00025,2]
[310018030,1704289840069,-1244.4653011,0.00025,2]
[310018032,1704289840079,-856.91305221,0.00025,2]
[310018034,1704289840088,-302.38991447,0.00025,2]
[310018036,1704289840099,-500.0,0.00025,2]
[310018038,1704289840108,-156.82188596,0.00025,2]
[310018040,1704289840118,-150.0,0.00025003,2]
[310018042,1704289840127,-268.99,0.0002506,2]
[310018044,1704289840143,-31150.18327883,0.0002509,2]
[310018046,1704289840152,-2020.0447998,0.00025111,2]
[310018048,1704289840163,-268.99,0.00025188,2]
[310018050,1704289840172,-1000.0,0.00025191,3]
[310018053,1704289840183,-169.14,0.00025244,2]
[310018055,1704289840193,-377.58,0.00025252,2]
[310018056,1704289840203,-154.16,0.00025273,2]
[310018059,1704289840213,-327.37278419,0.00025288,2]
[310018061,1704289840223,-268.99,0.00025316,2]
[310018063,1704289840233,-199.55837168,0.00025369,2]
[310018065,1704289840243,-2940.14337635,0.00025417,2]
[310018066,1704289840252,-268.99,0.00025444,2]
[310018067,1704289840261,-1000.0,0.00025465,3]
[310018068,1704289840271,-164.42,0.00025535,2]
[310018069,1704289840281,-1099.24,0.00025552,2]
[310018070,1704289840290,-268.99,0.00025571,2]
[310018071,1704289840300,-4488.64388571,0.00025593,2]
[310018072,1704289840310,-154.16,0.00025647,2]
[310018073,1704289840320,-268.99,0.00025699,2]
[310018074,1704289840331,-1000.0,0.00025739,3]
[310018075,1704289840340,-268.99,0.00025827,2]
[310018076,1704289840350,-1858.21,0.00025929,2]
[310018077,1704289840359,-268.99,0.00025955,2]
[310018078,1704289840369,-201.0,0.00025956,7]
[310018081,1704289840379,-155.19,0.00025965,2]
[310018083,1704289840392,-1000.0,0.00026013,3]
[310018085,1704289840401,-154.16,0.00026022,2]
[310018087,1704289840411,-150.0,0.00026079,2]
[310018089,1704289840421,-268.99,0.00026083,2]
[310018091,1704289840431,-155.0,0.000261,2]
[310018093,1704289840440,-377.58,0.00026139,2]
[310018096,1704289840450,-2488.0,0.00026192,2]
[310018097,1704289840460,-268.99,0.00026211,2]
[310018098,1704289840470,-164.42,0.00026227,2]
[310018099,1704289840479,-218.7,0.0002626,2]
[310018100,1704289840489,-1000.0,0.00026287,3]
[310018101,1704289840498,-268.99,0.00026339,2]
[310018102,1704289840507,-218.7,0.00026398,2]
[310018103,1704289840517,-261.42380051,0.000264,2]
[310018104,1704289840527,-177.01099437,0.000264,2]
[310018105,1704289840536,-268.99,0.00026466,2]
[310018106,1704289840545,-568.77,0.0002648,2]
[310018107,1704289840555,-4488.64388571,0.00026491,2]
[310018108,1704289840564,-1099.24,0.00026531,2]
[310018109,1704289840574,-218.7,0.00026536,2]
[310018110,1704289840583,-587.0,0.00026549,2]
[310018111,1704289840593,-1000.0,0.00026561,3]
[310018112,1704289840602,-268.99,0.00026594,2]
[310018113,1704289840612,-218.7,0.00026674,2]
[310018114,1704289840621,-268.99,0.00026722,2]
[310018115,1704289840633,-218.7,0.00026813,2]
[310018116,1704289840643,-1000.0,0.00026835,3]
[310018117,1704289840653,-2940.14337635,0.00026889,3]
[310018118,1704289840663,-218.7,0.00026951,2]
[310018119,1704289840673,-450.0,0.00027,3]
[310018120,1704289840684,-161.98927422,0.00027,2]
[310018121,1704289840695,-377.58,0.00027027,2]
[310018122,1704289840704,-247.60430346,0.00027028,2]
[310018123,1704289840714,-218.7,0.00027089,2]
[310018124,1704289840723,-170.69,0.00027106,2]
[310018125,1704289840733,-1000.0,0.00027109,3]